Workbook

Sheet Sheet1
C1: أختر عددين بين 1 و 400 واضغط على الزر
C2: 1 | D2: 20
F3: اختيار عشوائي
A4: NO | B4: Name | F4: NO | G4: Name
A5: =IF(B5="","",MAX($A$4:A4)+1) -> 1 | B5: A1 | F5: 7 | G5: =IF($F5="","",INDEX($B$5:$B$404,$F5)) -> A7
A6: =IF(B6="","",MAX($A$4:A5)+1) -> 2 | B6: A2 | F6: 11 | G6: =IF($F6="","",INDEX($B$5:$B$404,$F6)) -> A11
A7: =IF(B7="","",MAX($A$4:A6)+1) -> 3 | B7: A3 | F7: 18 | G7: A18
A8: =IF(B8="","",MAX($A$4:A7)+1) -> 4 | B8: A4 | F8: 4 | G8: A4
A9: =IF(B9="","",MAX($A$4:A8)+1) -> 5 | B9: A5 | F9: 5 | G9: A5
A10: =IF(B10="","",MAX($A$4:A9)+1) -> 6 | B10: A6 | F10: 20 | G10: A20
A11: =IF(B11="","",MAX($A$4:A10)+1) -> 7 | B11: A7 | F11: 15 | G11: A15
A12: =IF(B12="","",MAX($A$4:A11)+1) -> 8 | B12: A8 | F12: 12 | G12: A12
A13: =IF(B13="","",MAX($A$4:A12)+1) -> 9 | B13: A9 | F13: 2 | G13: A2
A14: =IF(B14="","",MAX($A$4:A13)+1) -> 10 | B14: A10 | F14: 3 | G14: A3
A15: =IF(B15="","",MAX($A$4:A14)+1) -> 11 | B15: A11 | F15: 1 | G15: A1
A16: =IF(B16="","",MAX($A$4:A15)+1) -> 12 | B16: A12 | F16: 10 | G16: A10
A17: =IF(B17="","",MAX($A$4:A16)+1) -> 13 | B17: A13 | F17: 8 | G17: A8
A18: =IF(B18="","",MAX($A$4:A17)+1) -> 14 | B18: A14 | F18: 6 | G18: A6
A19: =IF(B19="","",MAX($A$4:A18)+1) -> 15 | B19: A15 | F19: 14 | G19: A14
A20: =IF(B20="","",MAX($A$4:A19)+1) -> 16 | B20: A16 | F20: 9 | G20: A9
A21: =IF(B21="","",MAX($A$4:A20)+1) -> 17 | B21: A17 | F21: 13 | G21: A13
A22: =IF(B22="","",MAX($A$4:A21)+1) -> 18 | B22: A18 | F22: 17 | G22: A17
A23: =IF(B23="","",MAX($A$4:A22)+1) -> 19 | B23: A19 | F23: 19 | G23: A19
A24: =IF(B24="","",MAX($A$4:A23)+1) -> 20 | B24: A20 | F24: 16 | G24: A16
A25: =IF(B25="","",MAX($A$4:A24)+1) -> 21 | B25: A21
A26: =IF(B26="","",MAX($A$4:A25)+1) -> 22 | B26: A22
A27: =IF(B27="","",MAX($A$4:A26)+1) -> 23 | B27: A23
A28: =IF(B28="","",MAX($A$4:A27)+1) -> 24 | B28: A24
A29: =IF(B29="","",MAX($A$4:A28)+1) -> 25 | B29: A25
A30: =IF(B30="","",MAX($A$4:A29)+1) -> 26 | B30: A26
A31: =IF(B31="","",MAX($A$4:A30)+1) -> 27 | B31: A27
A32: =IF(B32="","",MAX($A$4:A31)+1) -> 28 | B32: A28
A33: =IF(B33="","",MAX($A$4:A32)+1) -> 29 | B33: A29
A34: =IF(B34="","",MAX($A$4:A33)+1) -> 30 | B34: A30
A35: =IF(B35="","",MAX($A$4:A34)+1) -> 31 | B35: A31
A36: =IF(B36="","",MAX($A$4:A35)+1) -> 32 | B36: A32
A37: =IF(B37="","",MAX($A$4:A36)+1) -> 33 | B37: A33
A38: =IF(B38="","",MAX($A$4:A37)+1) -> 34 | B38: A34
A39: =IF(B39="","",MAX($A$4:A38)+1) -> 35 | B39: A35
A40: =IF(B40="","",MAX($A$4:A39)+1) -> 36 | B40: A36
A41: =IF(B41="","",MAX($A$4:A40)+1) -> 37 | B41: A37
A42: =IF(B42="","",MAX($A$4:A41)+1) -> 38 | B42: A38
A43: =IF(B43="","",MAX($A$4:A42)+1) -> 39 | B43: A39
A44: =IF(B44="","",MAX($A$4:A43)+1) -> 40 | B44: A40
A45: =IF(B45="","",MAX($A$4:A44)+1) -> 41 | B45: A41
A46: =IF(B46="","",MAX($A$4:A45)+1) -> 42 | B46: A42
A47: =IF(B47="","",MAX($A$4:A46)+1) -> 43 | B47: A43
A48: =IF(B48="","",MAX($A$4:A47)+1) -> 44 | B48: A44
A49: =IF(B49="","",MAX($A$4:A48)+1) -> 45 | B49: A45
A50: =IF(B50="","",MAX($A$4:A49)+1) -> 46 | B50: A46
A51: =IF(B51="","",MAX($A$4:A50)+1) -> 47 | B51: A47
A52: =IF(B52="","",MAX($A$4:A51)+1) -> 48 | B52: A48
A53: =IF(B53="","",MAX($A$4:A52)+1) -> 49 | B53: A49
A54: =IF(B54="","",MAX($A$4:A53)+1) -> 50 | B54: A50
A55: =IF(B55="","",MAX($A$4:A54)+1) -> 51 | B55: A51
A56: =IF(B56="","",MAX($A$4:A55)+1) -> 52 | B56: A52
A57: =IF(B57="","",MAX($A$4:A56)+1) -> 53 | B57: A53
A58: =IF(B58="","",MAX($A$4:A57)+1) -> 54 | B58: A54
A59: =IF(B59="","",MAX($A$4:A58)+1) -> 55 | B59: A55
A60: =IF(B60="","",MAX($A$4:A59)+1) -> 56 | B60: A56
A61: =IF(B61="","",MAX($A$4:A60)+1) -> 57 | B61: A57
A62: =IF(B62="","",MAX($A$4:A61)+1) -> 58 | B62: A58
A63: =IF(B63="","",MAX($A$4:A62)+1) -> 59 | B63: A59
A64: =IF(B64="","",MAX($A$4:A63)+1) -> 60 | B64: A60
A65: =IF(B65="","",MAX($A$4:A64)+1) -> 61 | B65: A61
A66: =IF(B66="","",MAX($A$4:A65)+1) -> 62 | B66: A62
A67: =IF(B67="","",MAX($A$4:A66)+1) -> 63 | B67: A63
A68: =IF(B68="","",MAX($A$4:A67)+1) -> 64 | B68: A64
A69: =IF(B69="","",MAX($A$4:A68)+1) -> 65 | B69: A65
A70: =IF(B70="","",MAX($A$4:A69)+1) -> 66 | B70: A66 | G70: =IF($F70="","",INDEX($B$5:$B$404,$F70)) -> 
A71: =IF(B71="","",MAX($A$4:A70)+1) -> 67 | B71: A67
A72: =IF(B72="","",MAX($A$4:A71)+1) -> 68 | B72: A68
A73: =IF(B73="","",MAX($A$4:A72)+1) -> 69 | B73: A69
A74: =IF(B74="","",MAX($A$4:A73)+1) -> 70 | B74: A70
A75: =IF(B75="","",MAX($A$4:A74)+1) -> 71 | B75: A71
A76: =IF(B76="","",MAX($A$4:A75)+1) -> 72 | B76: A72
A77: =IF(B77="","",MAX($A$4:A76)+1) -> 73 | B77: A73
A78: =IF(B78="","",MAX($A$4:A77)+1) -> 74 | B78: A74
A79: =IF(B79="","",MAX($A$4:A78)+1) -> 75 | B79: A75
A80: =IF(B80="","",MAX($A$4:A79)+1) -> 76 | B80: A76
A81: =IF(B81="","",MAX($A$4:A80)+1) -> 77 | B81: A77
A82: =IF(B82="","",MAX($A$4:A81)+1) -> 78 | B82: A78
A83: =IF(B83="","",MAX($A$4:A82)+1) -> 79 | B83: A79
A84: =IF(B84="","",MAX($A$4:A83)+1) -> 80 | B84: A80
A85: =IF(B85="","",MAX($A$4:A84)+1) -> 81 | B85: A81
A86: =IF(B86="","",MAX($A$4:A85)+1) -> 82 | B86: A82
A87: =IF(B87="","",MAX($A$4:A86)+1) -> 83 | B87: A83
A88: =IF(B88="","",MAX($A$4:A87)+1) -> 84 | B88: A84
A89: =IF(B89="","",MAX($A$4:A88)+1) -> 85 | B89: A85
A90: =IF(B90="","",MAX($A$4:A89)+1) -> 86 | B90: A86
A91: =IF(B91="","",MAX($A$4:A90)+1) -> 87 | B91: A87
A92: =IF(B92="","",MAX($A$4:A91)+1) -> 88 | B92: A88
A93: =IF(B93="","",MAX($A$4:A92)+1) -> 89 | B93: A89
A94: =IF(B94="","",MAX($A$4:A93)+1) -> 90 | B94: A90
A95: =IF(B95="","",MAX($A$4:A94)+1) -> 91 | B95: A91
A96: =IF(B96="","",MAX($A$4:A95)+1) -> 92 | B96: A92
A97: =IF(B97="","",MAX($A$4:A96)+1) -> 93 | B97: A93
A98: =IF(B98="","",MAX($A$4:A97)+1) -> 94 | B98: A94
A99: =IF(B99="","",MAX($A$4:A98)+1) -> 95 | B99: A95
A100: =IF(B100="","",MAX($A$4:A99)+1) -> 96 | B100: A96
A101: =IF(B101="","",MAX($A$4:A100)+1) -> 97 | B101: A97
A102: =IF(B102="","",MAX($A$4:A101)+1) -> 98 | B102: A98
A103: =IF(B103="","",MAX($A$4:A102)+1) -> 99 | B103: A99
A104: =IF(B104="","",MAX($A$4:A103)+1) -> 100 | B104: A100
A105: =IF(B105="","",MAX($A$4:A104)+1) -> 101 | B105: A101
A106: =IF(B106="","",MAX($A$4:A105)+1) -> 102 | B106: A102
A107: =IF(B107="","",MAX($A$4:A106)+1) -> 103 | B107: A103
A108: =IF(B108="","",MAX($A$4:A107)+1) -> 104 | B108: A104
A109: =IF(B109="","",MAX($A$4:A108)+1) -> 105 | B109: A105
A110: =IF(B110="","",MAX($A$4:A109)+1) -> 106 | B110: A106
A111: =IF(B111="","",MAX($A$4:A110)+1) -> 107 | B111: A107
A112: =IF(B112="","",MAX($A$4:A111)+1) -> 108 | B112: A108
A113: =IF(B113="","",MAX($A$4:A112)+1) -> 109 | B113: A109
A114: =IF(B114="","",MAX($A$4:A113)+1) -> 110 | B114: A110
A115: =IF(B115="","",MAX($A$4:A114)+1) -> 111 | B115: A111
A116: =IF(B116="","",MAX($A$4:A115)+1) -> 112 | B116: A112
A117: =IF(B117="","",MAX($A$4:A116)+1) -> 113 | B117: A113
A118: =IF(B118="","",MAX($A$4:A117)+1) -> 114 | B118: A114
A119: =IF(B119="","",MAX($A$4:A118)+1) -> 115 | B119: A115
A120: =IF(B120="","",MAX($A$4:A119)+1) -> 116 | B120: A116
A121: =IF(B121="","",MAX($A$4:A120)+1) -> 117 | B121: A117
A122: =IF(B122="","",MAX($A$4:A121)+1) -> 118 | B122: A118
A123: =IF(B123="","",MAX($A$4:A122)+1) -> 119 | B123: A119
A124: =IF(B124="","",MAX($A$4:A123)+1) -> 120 | B124: A120
A125: =IF(B125="","",MAX($A$4:A124)+1) -> 121 | B125: A121
A126: =IF(B126="","",MAX($A$4:A125)+1) -> 122 | B126: A122
A127: =IF(B127="","",MAX($A$4:A126)+1) -> 123 | B127: A123
A128: =IF(B128="","",MAX($A$4:A127)+1) -> 124 | B128: A124
A129: =IF(B129="","",MAX($A$4:A128)+1) -> 125 | B129: A125
A130: =IF(B130="","",MAX($A$4:A129)+1) -> 126 | B130: A126
A131: =IF(B131="","",MAX($A$4:A130)+1) -> 127 | B131: A127
A132: =IF(B132="","",MAX($A$4:A131)+1) -> 128 | B132: A128
A133: =IF(B133="","",MAX($A$4:A132)+1) -> 129 | B133: A129
A134: =IF(B134="","",MAX($A$4:A133)+1) -> 130 | B134: A130 | G134: =IF($F134="","",INDEX($B$5:$B$404,$F134)) -> 
A135: =IF(B135="","",MAX($A$4:A134)+1) -> 131 | B135: A131
A136: =IF(B136="","",MAX($A$4:A135)+1) -> 132 | B136: A132
A137: =IF(B137="","",MAX($A$4:A136)+1) -> 133 | B137: A133
A138: =IF(B138="","",MAX($A$4:A137)+1) -> 134 | B138: A134
A139: =IF(B139="","",MAX($A$4:A138)+1) -> 135 | B139: A135
A140: =IF(B140="","",MAX($A$4:A139)+1) -> 136 | B140: A136
A141: =IF(B141="","",MAX($A$4:A140)+1) -> 137 | B141: A137
A142: =IF(B142="","",MAX($A$4:A141)+1) -> 138 | B142: A138
A143: =IF(B143="","",MAX($A$4:A142)+1) -> 139 | B143: A139
A144: =IF(B144="","",MAX($A$4:A143)+1) -> 140 | B144: A140
A145: =IF(B145="","",MAX($A$4:A144)+1) -> 141 | B145: A141
A146: =IF(B146="","",MAX($A$4:A145)+1) -> 142 | B146: A142
A147: =IF(B147="","",MAX($A$4:A146)+1) -> 143 | B147: A143
A148: =IF(B148="","",MAX($A$4:A147)+1) -> 144 | B148: A144
A149: =IF(B149="","",MAX($A$4:A148)+1) -> 145 | B149: A145
A150: =IF(B150="","",MAX($A$4:A149)+1) -> 146 | B150: A146
A151: =IF(B151="","",MAX($A$4:A150)+1) -> 147 | B151: A147
A152: =IF(B152="","",MAX($A$4:A151)+1) -> 148 | B152: A148
A153: =IF(B153="","",MAX($A$4:A152)+1) -> 149 | B153: A149
A154: =IF(B154="","",MAX($A$4:A153)+1) -> 150 | B154: A150
A155: =IF(B155="","",MAX($A$4:A154)+1) -> 151 | B155: A151
A156: =IF(B156="","",MAX($A$4:A155)+1) -> 152 | B156: A152
A157: =IF(B157="","",MAX($A$4:A156)+1) -> 153 | B157: A153
A158: =IF(B158="","",MAX($A$4:A157)+1) -> 154 | B158: A154
A159: =IF(B159="","",MAX($A$4:A158)+1) -> 155 | B159: A155
A160: =IF(B160="","",MAX($A$4:A159)+1) -> 156 | B160: A156
A161: =IF(B161="","",MAX($A$4:A160)+1) -> 157 | B161: A157
A162: =IF(B162="","",MAX($A$4:A161)+1) -> 158 | B162: A158
A163: =IF(B163="","",MAX($A$4:A162)+1) -> 159 | B163: A159
A164: =IF(B164="","",MAX($A$4:A163)+1) -> 160 | B164: A160
A165: =IF(B165="","",MAX($A$4:A164)+1) -> 161 | B165: A161
A166: =IF(B166="","",MAX($A$4:A165)+1) -> 162 | B166: A162
A167: =IF(B167="","",MAX($A$4:A166)+1) -> 163 | B167: A163
A168: =IF(B168="","",MAX($A$4:A167)+1) -> 164 | B168: A164
A169: =IF(B169="","",MAX($A$4:A168)+1) -> 165 | B169: A165
A170: =IF(B170="","",MAX($A$4:A169)+1) -> 166 | B170: A166
A171: =IF(B171="","",MAX($A$4:A170)+1) -> 167 | B171: A167
A172: =IF(B172="","",MAX($A$4:A171)+1) -> 168 | B172: A168
A173: =IF(B173="","",MAX($A$4:A172)+1) -> 169 | B173: A169
A174: =IF(B174="","",MAX($A$4:A173)+1) -> 170 | B174: A170
A175: =IF(B175="","",MAX($A$4:A174)+1) -> 171 | B175: A171
A176: =IF(B176="","",MAX($A$4:A175)+1) -> 172 | B176: A172
A177: =IF(B177="","",MAX($A$4:A176)+1) -> 173 | B177: A173
A178: =IF(B178="","",MAX($A$4:A177)+1) -> 174 | B178: A174
A179: =IF(B179="","",MAX($A$4:A178)+1) -> 175 | B179: A175
A180: =IF(B180="","",MAX($A$4:A179)+1) -> 176 | B180: A176
A181: =IF(B181="","",MAX($A$4:A180)+1) -> 177 | B181: A177
A182: =IF(B182="","",MAX($A$4:A181)+1) -> 178 | B182: A178
A183: =IF(B183="","",MAX($A$4:A182)+1) -> 179 | B183: A179
A184: =IF(B184="","",MAX($A$4:A183)+1) -> 180 | B184: A180
A185: =IF(B185="","",MAX($A$4:A184)+1) -> 181 | B185: A181
A186: =IF(B186="","",MAX($A$4:A185)+1) -> 182 | B186: A182
A187: =IF(B187="","",MAX($A$4:A186)+1) -> 183 | B187: A183
A188: =IF(B188="","",MAX($A$4:A187)+1) -> 184 | B188: A184
A189: =IF(B189="","",MAX($A$4:A188)+1) -> 185 | B189: A185
A190: =IF(B190="","",MAX($A$4:A189)+1) -> 186 | B190: A186
A191: =IF(B191="","",MAX($A$4:A190)+1) -> 187 | B191: A187
A192: =IF(B192="","",MAX($A$4:A191)+1) -> 188 | B192: A188
A193: =IF(B193="","",MAX($A$4:A192)+1) -> 189 | B193: A189
A194: =IF(B194="","",MAX($A$4:A193)+1) -> 190 | B194: A190
A195: =IF(B195="","",MAX($A$4:A194)+1) -> 191 | B195: A191
A196: =IF(B196="","",MAX($A$4:A195)+1) -> 192 | B196: A192
A197: =IF(B197="","",MAX($A$4:A196)+1) -> 193 | B197: A193
A198: =IF(B198="","",MAX($A$4:A197)+1) -> 194 | B198: A194 | G198: =IF($F198="","",INDEX($B$5:$B$404,$F198)) -> 
A199: =IF(B199="","",MAX($A$4:A198)+1) -> 195 | B199: A195
A200: =IF(B200="","",MAX($A$4:A199)+1) -> 196 | B200: A196
... 215 more rows

Sheet salim
C1: أختر عددين بين 1 و 400 واضغط على الزر
C2: 1 | D2: 400
E3: صاحب الحظ السّعيد
A4: NO | B4: Name | D4: 163 | E4: اسم 163
A5: =IF(B5="","",MAX($A$4:A4)+1) -> 1 | B5: اسم 1
A6: =IF(B6="","",MAX($A$4:A5)+1) -> 2 | B6: اسم 2
A7: =IF(B7="","",MAX($A$4:A6)+1) -> 3 | B7: اسم 3
A8: =IF(B8="","",MAX($A$4:A7)+1) -> 4 | B8: اسم 4
A9: =IF(B9="","",MAX($A$4:A8)+1) -> 5 | B9: اسم 5
A10: =IF(B10="","",MAX($A$4:A9)+1) -> 6 | B10: اسم 6
A11: =IF(B11="","",MAX($A$4:A10)+1) -> 7 | B11: اسم 7
A12: =IF(B12="","",MAX($A$4:A11)+1) -> 8 | B12: اسم 8
A13: =IF(B13="","",MAX($A$4:A12)+1) -> 9 | B13: اسم 9
A14: =IF(B14="","",MAX($A$4:A13)+1) -> 10 | B14: اسم 10
A15: =IF(B15="","",MAX($A$4:A14)+1) -> 11 | B15: اسم 11
A16: =IF(B16="","",MAX($A$4:A15)+1) -> 12 | B16: اسم 12
A17: =IF(B17="","",MAX($A$4:A16)+1) -> 13 | B17: اسم 13
A18: =IF(B18="","",MAX($A$4:A17)+1) -> 14 | B18: اسم 14
A19: =IF(B19="","",MAX($A$4:A18)+1) -> 15 | B19: اسم 15
A20: =IF(B20="","",MAX($A$4:A19)+1) -> 16 | B20: اسم 16
A21: =IF(B21="","",MAX($A$4:A20)+1) -> 17 | B21: اسم 17
A22: =IF(B22="","",MAX($A$4:A21)+1) -> 18 | B22: اسم 18
A23: =IF(B23="","",MAX($A$4:A22)+1) -> 19 | B23: اسم 19
A24: =IF(B24="","",MAX($A$4:A23)+1) -> 20 | B24: اسم 20
A25: =IF(B25="","",MAX($A$4:A24)+1) -> 21 | B25: اسم 21
A26: =IF(B26="","",MAX($A$4:A25)+1) -> 22 | B26: اسم 22
A27: =IF(B27="","",MAX($A$4:A26)+1) -> 23 | B27: اسم 23
A28: =IF(B28="","",MAX($A$4:A27)+1) -> 24 | B28: اسم 24
A29: =IF(B29="","",MAX($A$4:A28)+1) -> 25 | B29: اسم 25
A30: =IF(B30="","",MAX($A$4:A29)+1) -> 26 | B30: اسم 26
A31: =IF(B31="","",MAX($A$4:A30)+1) -> 27 | B31: اسم 27
A32: =IF(B32="","",MAX($A$4:A31)+1) -> 28 | B32: اسم 28
A33: =IF(B33="","",MAX($A$4:A32)+1) -> 29 | B33: اسم 29
A34: =IF(B34="","",MAX($A$4:A33)+1) -> 30 | B34: اسم 30
A35: =IF(B35="","",MAX($A$4:A34)+1) -> 31 | B35: اسم 31
A36: =IF(B36="","",MAX($A$4:A35)+1) -> 32 | B36: اسم 32
A37: =IF(B37="","",MAX($A$4:A36)+1) -> 33 | B37: اسم 33
A38: =IF(B38="","",MAX($A$4:A37)+1) -> 34 | B38: اسم 34
A39: =IF(B39="","",MAX($A$4:A38)+1) -> 35 | B39: اسم 35
A40: =IF(B40="","",MAX($A$4:A39)+1) -> 36 | B40: اسم 36
A41: =IF(B41="","",MAX($A$4:A40)+1) -> 37 | B41: اسم 37
A42: =IF(B42="","",MAX($A$4:A41)+1) -> 38 | B42: اسم 38
A43: =IF(B43="","",MAX($A$4:A42)+1) -> 39 | B43: اسم 39
A44: =IF(B44="","",MAX($A$4:A43)+1) -> 40 | B44: اسم 40
A45: =IF(B45="","",MAX($A$4:A44)+1) -> 41 | B45: اسم 41
A46: =IF(B46="","",MAX($A$4:A45)+1) -> 42 | B46: اسم 42
A47: =IF(B47="","",MAX($A$4:A46)+1) -> 43 | B47: اسم 43
A48: =IF(B48="","",MAX($A$4:A47)+1) -> 44 | B48: اسم 44
A49: =IF(B49="","",MAX($A$4:A48)+1) -> 45 | B49: اسم 45
A50: =IF(B50="","",MAX($A$4:A49)+1) -> 46 | B50: اسم 46
A51: =IF(B51="","",MAX($A$4:A50)+1) -> 47 | B51: اسم 47
A52: =IF(B52="","",MAX($A$4:A51)+1) -> 48 | B52: اسم 48
A53: =IF(B53="","",MAX($A$4:A52)+1) -> 49 | B53: اسم 49
A54: =IF(B54="","",MAX($A$4:A53)+1) -> 50 | B54: اسم 50
A55: =IF(B55="","",MAX($A$4:A54)+1) -> 51 | B55: اسم 51
A56: =IF(B56="","",MAX($A$4:A55)+1) -> 52 | B56: اسم 52
A57: =IF(B57="","",MAX($A$4:A56)+1) -> 53 | B57: اسم 53
A58: =IF(B58="","",MAX($A$4:A57)+1) -> 54 | B58: اسم 54
A59: =IF(B59="","",MAX($A$4:A58)+1) -> 55 | B59: اسم 55
A60: =IF(B60="","",MAX($A$4:A59)+1) -> 56 | B60: اسم 56
A61: =IF(B61="","",MAX($A$4:A60)+1) -> 57 | B61: اسم 57
A62: =IF(B62="","",MAX($A$4:A61)+1) -> 58 | B62: اسم 58
A63: =IF(B63="","",MAX($A$4:A62)+1) -> 59 | B63: اسم 59
A64: =IF(B64="","",MAX($A$4:A63)+1) -> 60 | B64: اسم 60
A65: =IF(B65="","",MAX($A$4:A64)+1) -> 61 | B65: اسم 61
A66: =IF(B66="","",MAX($A$4:A65)+1) -> 62 | B66: اسم 62
A67: =IF(B67="","",MAX($A$4:A66)+1) -> 63 | B67: اسم 63
A68: =IF(B68="","",MAX($A$4:A67)+1) -> 64 | B68: اسم 64
A69: =IF(B69="","",MAX($A$4:A68)+1) -> 65 | B69: اسم 65
A70: =IF(B70="","",MAX($A$4:A69)+1) -> 66 | B70: اسم 66
A71: =IF(B71="","",MAX($A$4:A70)+1) -> 67 | B71: اسم 67
A72: =IF(B72="","",MAX($A$4:A71)+1) -> 68 | B72: اسم 68
A73: =IF(B73="","",MAX($A$4:A72)+1) -> 69 | B73: اسم 69
A74: =IF(B74="","",MAX($A$4:A73)+1) -> 70 | B74: اسم 70
A75: =IF(B75="","",MAX($A$4:A74)+1) -> 71 | B75: اسم 71
A76: =IF(B76="","",MAX($A$4:A75)+1) -> 72 | B76: اسم 72
A77: =IF(B77="","",MAX($A$4:A76)+1) -> 73 | B77: اسم 73
A78: =IF(B78="","",MAX($A$4:A77)+1) -> 74 | B78: اسم 74
A79: =IF(B79="","",MAX($A$4:A78)+1) -> 75 | B79: اسم 75
A80: =IF(B80="","",MAX($A$4:A79)+1) -> 76 | B80: اسم 76
A81: =IF(B81="","",MAX($A$4:A80)+1) -> 77 | B81: اسم 77
A82: =IF(B82="","",MAX($A$4:A81)+1) -> 78 | B82: اسم 78
A83: =IF(B83="","",MAX($A$4:A82)+1) -> 79 | B83: اسم 79
A84: =IF(B84="","",MAX($A$4:A83)+1) -> 80 | B84: اسم 80
A85: =IF(B85="","",MAX($A$4:A84)+1) -> 81 | B85: اسم 81
A86: =IF(B86="","",MAX($A$4:A85)+1) -> 82 | B86: اسم 82
A87: =IF(B87="","",MAX($A$4:A86)+1) -> 83 | B87: اسم 83
A88: =IF(B88="","",MAX($A$4:A87)+1) -> 84 | B88: اسم 84
A89: =IF(B89="","",MAX($A$4:A88)+1) -> 85 | B89: اسم 85
A90: =IF(B90="","",MAX($A$4:A89)+1) -> 86 | B90: اسم 86
A91: =IF(B91="","",MAX($A$4:A90)+1) -> 87 | B91: اسم 87
A92: =IF(B92="","",MAX($A$4:A91)+1) -> 88 | B92: اسم 88
A93: =IF(B93="","",MAX($A$4:A92)+1) -> 89 | B93: اسم 89
A94: =IF(B94="","",MAX($A$4:A93)+1) -> 90 | B94: اسم 90
A95: =IF(B95="","",MAX($A$4:A94)+1) -> 91 | B95: اسم 91
A96: =IF(B96="","",MAX($A$4:A95)+1) -> 92 | B96: اسم 92
A97: =IF(B97="","",MAX($A$4:A96)+1) -> 93 | B97: اسم 93
A98: =IF(B98="","",MAX($A$4:A97)+1) -> 94 | B98: اسم 94
A99: =IF(B99="","",MAX($A$4:A98)+1) -> 95 | B99: اسم 95
A100: =IF(B100="","",MAX($A$4:A99)+1) -> 96 | B100: اسم 96
A101: =IF(B101="","",MAX($A$4:A100)+1) -> 97 | B101: اسم 97
A102: =IF(B102="","",MAX($A$4:A101)+1) -> 98 | B102: اسم 98
A103: =IF(B103="","",MAX($A$4:A102)+1) -> 99 | B103: اسم 99
A104: =IF(B104="","",MAX($A$4:A103)+1) -> 100 | B104: اسم 100
A105: =IF(B105="","",MAX($A$4:A104)+1) -> 101 | B105: اسم 101
A106: =IF(B106="","",MAX($A$4:A105)+1) -> 102 | B106: اسم 102
A107: =IF(B107="","",MAX($A$4:A106)+1) -> 103 | B107: اسم 103
A108: =IF(B108="","",MAX($A$4:A107)+1) -> 104 | B108: اسم 104
A109: =IF(B109="","",MAX($A$4:A108)+1) -> 105 | B109: اسم 105
A110: =IF(B110="","",MAX($A$4:A109)+1) -> 106 | B110: اسم 106
A111: =IF(B111="","",MAX($A$4:A110)+1) -> 107 | B111: اسم 107
A112: =IF(B112="","",MAX($A$4:A111)+1) -> 108 | B112: اسم 108
A113: =IF(B113="","",MAX($A$4:A112)+1) -> 109 | B113: اسم 109
A114: =IF(B114="","",MAX($A$4:A113)+1) -> 110 | B114: اسم 110
A115: =IF(B115="","",MAX($A$4:A114)+1) -> 111 | B115: اسم 111
A116: =IF(B116="","",MAX($A$4:A115)+1) -> 112 | B116: اسم 112
A117: =IF(B117="","",MAX($A$4:A116)+1) -> 113 | B117: اسم 113
A118: =IF(B118="","",MAX($A$4:A117)+1) -> 114 | B118: اسم 114
A119: =IF(B119="","",MAX($A$4:A118)+1) -> 115 | B119: اسم 115
A120: =IF(B120="","",MAX($A$4:A119)+1) -> 116 | B120: اسم 116
A121: =IF(B121="","",MAX($A$4:A120)+1) -> 117 | B121: اسم 117
A122: =IF(B122="","",MAX($A$4:A121)+1) -> 118 | B122: اسم 118
A123: =IF(B123="","",MAX($A$4:A122)+1) -> 119 | B123: اسم 119
A124: =IF(B124="","",MAX($A$4:A123)+1) -> 120 | B124: اسم 120
A125: =IF(B125="","",MAX($A$4:A124)+1) -> 121 | B125: اسم 121
A126: =IF(B126="","",MAX($A$4:A125)+1) -> 122 | B126: اسم 122
A127: =IF(B127="","",MAX($A$4:A126)+1) -> 123 | B127: اسم 123
A128: =IF(B128="","",MAX($A$4:A127)+1) -> 124 | B128: اسم 124
A129: =IF(B129="","",MAX($A$4:A128)+1) -> 125 | B129: اسم 125
A130: =IF(B130="","",MAX($A$4:A129)+1) -> 126 | B130: اسم 126
A131: =IF(B131="","",MAX($A$4:A130)+1) -> 127 | B131: اسم 127
A132: =IF(B132="","",MAX($A$4:A131)+1) -> 128 | B132: اسم 128
A133: =IF(B133="","",MAX($A$4:A132)+1) -> 129 | B133: اسم 129
A134: =IF(B134="","",MAX($A$4:A133)+1) -> 130 | B134: اسم 130
A135: =IF(B135="","",MAX($A$4:A134)+1) -> 131 | B135: اسم 131
A136: =IF(B136="","",MAX($A$4:A135)+1) -> 132 | B136: اسم 132
A137: =IF(B137="","",MAX($A$4:A136)+1) -> 133 | B137: اسم 133
A138: =IF(B138="","",MAX($A$4:A137)+1) -> 134 | B138: اسم 134
A139: =IF(B139="","",MAX($A$4:A138)+1) -> 135 | B139: اسم 135
A140: =IF(B140="","",MAX($A$4:A139)+1) -> 136 | B140: اسم 136
A141: =IF(B141="","",MAX($A$4:A140)+1) -> 137 | B141: اسم 137
A142: =IF(B142="","",MAX($A$4:A141)+1) -> 138 | B142: اسم 138
A143: =IF(B143="","",MAX($A$4:A142)+1) -> 139 | B143: اسم 139
A144: =IF(B144="","",MAX($A$4:A143)+1) -> 140 | B144: اسم 140
A145: =IF(B145="","",MAX($A$4:A144)+1) -> 141 | B145: اسم 141
A146: =IF(B146="","",MAX($A$4:A145)+1) -> 142 | B146: اسم 142
A147: =IF(B147="","",MAX($A$4:A146)+1) -> 143 | B147: اسم 143
A148: =IF(B148="","",MAX($A$4:A147)+1) -> 144 | B148: اسم 144
A149: =IF(B149="","",MAX($A$4:A148)+1) -> 145 | B149: اسم 145
A150: =IF(B150="","",MAX($A$4:A149)+1) -> 146 | B150: اسم 146
A151: =IF(B151="","",MAX($A$4:A150)+1) -> 147 | B151: اسم 147
A152: =IF(B152="","",MAX($A$4:A151)+1) -> 148 | B152: اسم 148
A153: =IF(B153="","",MAX($A$4:A152)+1) -> 149 | B153: اسم 149
A154: =IF(B154="","",MAX($A$4:A153)+1) -> 150 | B154: اسم 150
A155: =IF(B155="","",MAX($A$4:A154)+1) -> 151 | B155: اسم 151
A156: =IF(B156="","",MAX($A$4:A155)+1) -> 152 | B156: اسم 152
A157: =IF(B157="","",MAX($A$4:A156)+1) -> 153 | B157: اسم 153
A158: =IF(B158="","",MAX($A$4:A157)+1) -> 154 | B158: اسم 154
A159: =IF(B159="","",MAX($A$4:A158)+1) -> 155 | B159: اسم 155
A160: =IF(B160="","",MAX($A$4:A159)+1) -> 156 | B160: اسم 156
A161: =IF(B161="","",MAX($A$4:A160)+1) -> 157 | B161: اسم 157
A162: =IF(B162="","",MAX($A$4:A161)+1) -> 158 | B162: اسم 158
A163: =IF(B163="","",MAX($A$4:A162)+1) -> 159 | B163: اسم 159
A164: =IF(B164="","",MAX($A$4:A163)+1) -> 160 | B164: اسم 160
A165: =IF(B165="","",MAX($A$4:A164)+1) -> 161 | B165: اسم 161
A166: =IF(B166="","",MAX($A$4:A165)+1) -> 162 | B166: اسم 162
A167: =IF(B167="","",MAX($A$4:A166)+1) -> 163 | B167: اسم 163
A168: =IF(B168="","",MAX($A$4:A167)+1) -> 164 | B168: اسم 164
A169: =IF(B169="","",MAX($A$4:A168)+1) -> 165 | B169: اسم 165
A170: =IF(B170="","",MAX($A$4:A169)+1) -> 166 | B170: اسم 166
A171: =IF(B171="","",MAX($A$4:A170)+1) -> 167 | B171: اسم 167
A172: =IF(B172="","",MAX($A$4:A171)+1) -> 168 | B172: اسم 168
A173: =IF(B173="","",MAX($A$4:A172)+1) -> 169 | B173: اسم 169
A174: =IF(B174="","",MAX($A$4:A173)+1) -> 170 | B174: اسم 170
A175: =IF(B175="","",MAX($A$4:A174)+1) -> 171 | B175: اسم 171
A176: =IF(B176="","",MAX($A$4:A175)+1) -> 172 | B176: اسم 172
A177: =IF(B177="","",MAX($A$4:A176)+1) -> 173 | B177: اسم 173
A178: =IF(B178="","",MAX($A$4:A177)+1) -> 174 | B178: اسم 174
A179: =IF(B179="","",MAX($A$4:A178)+1) -> 175 | B179: اسم 175
A180: =IF(B180="","",MAX($A$4:A179)+1) -> 176 | B180: اسم 176
A181: =IF(B181="","",MAX($A$4:A180)+1) -> 177 | B181: اسم 177
A182: =IF(B182="","",MAX($A$4:A181)+1) -> 178 | B182: اسم 178
A183: =IF(B183="","",MAX($A$4:A182)+1) -> 179 | B183: اسم 179
A184: =IF(B184="","",MAX($A$4:A183)+1) -> 180 | B184: اسم 180
A185: =IF(B185="","",MAX($A$4:A184)+1) -> 181 | B185: اسم 181
A186: =IF(B186="","",MAX($A$4:A185)+1) -> 182 | B186: اسم 182
A187: =IF(B187="","",MAX($A$4:A186)+1) -> 183 | B187: اسم 183
A188: =IF(B188="","",MAX($A$4:A187)+1) -> 184 | B188: اسم 184
A189: =IF(B189="","",MAX($A$4:A188)+1) -> 185 | B189: اسم 185
A190: =IF(B190="","",MAX($A$4:A189)+1) -> 186 | B190: اسم 186
A191: =IF(B191="","",MAX($A$4:A190)+1) -> 187 | B191: اسم 187
A192: =IF(B192="","",MAX($A$4:A191)+1) -> 188 | B192: اسم 188
A193: =IF(B193="","",MAX($A$4:A192)+1) -> 189 | B193: اسم 189
A194: =IF(B194="","",MAX($A$4:A193)+1) -> 190 | B194: اسم 190
A195: =IF(B195="","",MAX($A$4:A194)+1) -> 191 | B195: اسم 191
A196: =IF(B196="","",MAX($A$4:A195)+1) -> 192 | B196: اسم 192
A197: =IF(B197="","",MAX($A$4:A196)+1) -> 193 | B197: اسم 193
A198: =IF(B198="","",MAX($A$4:A197)+1) -> 194 | B198: اسم 194
A199: =IF(B199="","",MAX($A$4:A198)+1) -> 195 | B199: اسم 195
A200: =IF(B200="","",MAX($A$4:A199)+1) -> 196 | B200: اسم 196
... 215 more rows

Sheet Sheet2

Sheet Sheet3
